Workbook

Sheet Chart
A1: =MPC&"-Month, "&Yerms&"-Yerm Lunar Cycle Jitter" -> 801-Month, 49-Yerm Lunar Cycle Jitter
A2: ="Cycle contains "&MPC&" months ("&FMPC&" full, "&DMPC&" deficient) = "&DPC&" days = "&reducefraction(DPC,7,FALSE,FALSE,TRUE)&" weeks = "&Yerms&" yerms." -> Cycle contains 801 months (425 full, 376 deficient) = 23654 days = 3379+1/7 weeks = 49 yerms.
A3: ="Mean month = "&"29+"&reducefraction(FMPC,MPC,FALSE,FALSE,TRUE)&" days = 29d 12h 44m "&reducefraction(240*(360*FMPC-191*MPC),MPC,FALSE,FALSE,TRUE)&" seconds, or about 29"&MID(FMPC/MPC,2,20)&" days or 29d 12h 44m "&ROUND(240*(360*FMPC-191*MPC)/MPC,6)&" seconds." -> Mean month = 29+425/801 days = 29d 12h 44m 2+62/89 seconds, or about 29.530586766541823 days or 29d 12h 44m 2.696629 seconds.
A4: ="Duration per ''Part'' = 1/"&MPC&" day = "&reducefraction(24,MPC,FALSE,FALSE,TRUE)&" hour = "&reducefraction(1440,MPC,FALSE,FALSE,TRUE)&" minutes = "&reducefraction(86400,MPC,FALSE,FALSE,TRUE)&" seconds. One hour = "&reducefraction(MPC,24,FALSE,FALSE,TRUE)&" parts." -> Duration per ''Part'' = 1/801 day = 8/267 hour = 1+71/89 minutes = 107+77/89 seconds. One hour = 33+3/8 parts.
Q9: FALSE
Q15: 1
Q16: Selected
Q17: Month
Q18: in Yerm
Q19: (1 to 17)

Sheet Data
A1: Lunar Cycle Jitter Evaluator
A2: by Dr. Irv Bromberg, University of Toronto, Canada
A3: http://individual.utoronto.ca/intervalmath/jitter/index.html | D3: Jitter | E3: (parts)
D4: =MAX(H:H) -> 408 | E4: maximum | F4: =reducefraction(JitterMax*MPC,MPC,FALSE,FALSE,FALSE) -> 408
A5: Months per Cycle (Parts per Day): | B5: 801 | C5: months (parts) | D5: =MIN(H:H) -> -392 | E5: minimum | F5: =reducefraction(JitterMin*MPC,MPC,FALSE,FALSE,FALSE) -> –(392)
A6: 30-day Months per Cycle: | B6: 425 | C6: months | D6: =D4-D5 -> 800 | E6: range | F6: =reducefraction(JitterRange*MPC,MPC,FALSE,FALSE,FALSE) -> 800
A7: 29-day Months per Cycle: | B7: =MPC-FMPC -> 376 | C7: months | D7: ="Jitter range = "&F6&" parts = "&reducefraction(F6*24,MPC,FALSE,FALSE,FALSE)&" hours" -> Jitter range = 800 parts = 23 + 259 / 267 hours
A8: Days per Cycle (Parts per Month): | B8: =29*MPC+FMPC -> 23654 | C8: days (parts)
A9: Yerms per Cycle: | B9: =2*DPC-59*MPC -> 49 | C9: yerms | D9: Limits for Chart:
A10: Mean Month: | B10: ="29 + "&reducefraction(FMPC,MPC,FALSE,FALSE,FALSE) -> 29 + 425 / 801 | C10: days | D10: x | E10: y | F10: Hours
A11: Mean Month >29d: | B11: =FMPC/MPC -> 0.530586766541823 | C11: days | D11: =C21 -> 1 | E11: =JitterMax -> 408 | F11: =E11*24/MPC -> 12.2247191
A12: Mean Month >29d 12h 44m: | B12: =reducefraction(240*(360*FMPC-191*MPC),MPC,FALSE,FALSE,TRUE) -> 2+62/89 | C12: seconds | D12: =MPC+1 -> 802 | E12: =E11 -> 408 | F12: =E12*24/MPC -> 12.2247191
A13: … or approximately: | B13: =240*(360*FMPC-191*MPC)/MPC -> 2.696629213 | C13: seconds
A14: Has Yerm Zero: | B14: =MeanMonth>26/49 -> FALSE | D14: =D11 -> 1 | E14: 0
A15: 17-month Yerms per Cycle: | B15: =443*MPC-15*DPC -> 33 | C15: yerms | D15: =D12 -> 802 | E15: 0
A16: 15-month Yerms per Cycle: | B16: =Yerms-n17my -> 16 | C16: yerms
A17: 49-month subcycles: | B17: =INT(Yerms/3) -> 16 | D17: =C21 -> 1 | E17: =JitterMin -> -392 | F17: =E17*24/MPC -> -11.74531835
A18: Duration per Part: | B18: =reducefraction(1440,MPC,FALSE,FALSE,FALSE) -> 1 + 71 / 89 | C18: minutes | D18: =D12 -> 802 | E18: =E17 -> -392 | F18: =E18*24/MPC -> -11.74531835
A20: Yerm in Cycle | B20: Months in Yerm | C20: Month # | D20: Month in Yerm | E20: Month Length | F20: New Month Moment | G20: Elapsed | H20: Difference
A21: 1 | B21: =IF(MOD(A21,3)=0,15,17) -> 17 | C21: 1 | D21: 1 | E21: =IF(MOD(D21,2)=1,30,29) -> 30 | F21: 0 | G21: 0 | H21: =F21-G21 -> 0
A22: =IF(D22=1,IF(A21=Yerms,1,A21+1),A21) -> 1 | B22: =IF(MOD(A22,3)=0,15,17) -> 17 | C22: =C21+1 -> 2 | D22: =IF(D21=B21,1,D21+1) -> 2 | E22: =IF(MOD(D22,2)=1,30,29) -> 29 | F22: =F21+PPM -> 23654 | G22: =G21+E21*PPD -> 24030 | H22: -376
A23: 1 | B23: 17 | C23: =C22+1 -> 3 | D23: 3 | E23: 30 | F23: =F22+PPM -> 47308 | G23: 47259 | H23: 49
A24: 1 | B24: 17 | C24: 4 | D24: 4 | E24: 29 | F24: 70962 | G24: 71289 | H24: -327
A25: 1 | B25: 17 | C25: 5 | D25: 5 | E25: 30 | F25: 94616 | G25: 94518 | H25: 98
A26: 1 | B26: 17 | C26: 6 | D26: 6 | E26: 29 | F26: 118270 | G26: 118548 | H26: -278
A27: 1 | B27: 17 | C27: 7 | D27: 7 | E27: 30 | F27: 141924 | G27: 141777 | H27: 147
A28: 1 | B28: 17 | C28: 8 | D28: 8 | E28: 29 | F28: 165578 | G28: 165807 | H28: -229
A29: 1 | B29: 17 | C29: 9 | D29: 9 | E29: 30 | F29: 189232 | G29: 189036 | H29: 196
A30: 1 | B30: 17 | C30: 10 | D30: 10 | E30: 29 | F30: 212886 | G30: 213066 | H30: -180
A31: 1 | B31: 17 | C31: 11 | D31: 11 | E31: 30 | F31: 236540 | G31: 236295 | H31: 245
A32: 1 | B32: 17 | C32: 12 | D32: 12 | E32: 29 | F32: 260194 | G32: 260325 | H32: -131
A33: 1 | B33: 17 | C33: 13 | D33: 13 | E33: 30 | F33: 283848 | G33: 283554 | H33: 294
A34: 1 | B34: 17 | C34: 14 | D34: 14 | E34: 29 | F34: 307502 | G34: 307584 | H34: -82
A35: 1 | B35: 17 | C35: 15 | D35: 15 | E35: 30 | F35: 331156 | G35: 330813 | H35: 343
A36: 1 | B36: 17 | C36: 16 | D36: 16 | E36: 29 | F36: 354810 | G36: 354843 | H36: -33
A37: 1 | B37: =IF(MOD(A37,3)=0,15,17) -> 17 | C37: 17 | D37: 17 | E37: 30 | F37: 378464 | G37: 378072 | H37: 392
A38: 2 | B38: 17 | C38: 18 | D38: 1 | E38: 30 | F38: 402118 | G38: 402102 | H38: 16
A39: 2 | B39: 17 | C39: 19 | D39: 2 | E39: 29 | F39: 425772 | G39: 426132 | H39: -360
A40: 2 | B40: 17 | C40: 20 | D40: 3 | E40: 30 | F40: 449426 | G40: 449361 | H40: 65
A41: 2 | B41: 17 | C41: 21 | D41: 4 | E41: 29 | F41: 473080 | G41: 473391 | H41: -311
A42: 2 | B42: 17 | C42: 22 | D42: 5 | E42: 30 | F42: 496734 | G42: 496620 | H42: 114
A43: 2 | B43: 17 | C43: 23 | D43: 6 | E43: 29 | F43: 520388 | G43: 520650 | H43: -262
A44: 2 | B44: 17 | C44: 24 | D44: 7 | E44: 30 | F44: 544042 | G44: 543879 | H44: 163
A45: 2 | B45: 17 | C45: 25 | D45: 8 | E45: 29 | F45: 567696 | G45: 567909 | H45: -213
A46: 2 | B46: 17 | C46: 26 | D46: 9 | E46: 30 | F46: 591350 | G46: 591138 | H46: 212
A47: 2 | B47: 17 | C47: 27 | D47: 10 | E47: 29 | F47: 615004 | G47: 615168 | H47: -164
A48: 2 | B48: 17 | C48: 28 | D48: 11 | E48: 30 | F48: 638658 | G48: 638397 | H48: 261
A49: 2 | B49: 17 | C49: 29 | D49: 12 | E49: 29 | F49: 662312 | G49: 662427 | H49: -115
A50: 2 | B50: 17 | C50: 30 | D50: 13 | E50: 30 | F50: 685966 | G50: 685656 | H50: 310
A51: 2 | B51: 17 | C51: 31 | D51: 14 | E51: 29 | F51: 709620 | G51: 709686 | H51: -66
A52: 2 | B52: 17 | C52: 32 | D52: 15 | E52: 30 | F52: 733274 | G52: 732915 | H52: 359
A53: 2 | B53: 17 | C53: 33 | D53: 16 | E53: 29 | F53: 756928 | G53: 756945 | H53: -17
A54: 2 | B54: 17 | C54: 34 | D54: 17 | E54: 30 | F54: 780582 | G54: 780174 | H54: 408
A55: 3 | B55: 15 | C55: 35 | D55: 1 | E55: 30 | F55: 804236 | G55: 804204 | H55: 32
A56: 3 | B56: 15 | C56: 36 | D56: 2 | E56: 29 | F56: 827890 | G56: 828234 | H56: -344
A57: 3 | B57: 15 | C57: 37 | D57: 3 | E57: 30 | F57: 851544 | G57: 851463 | H57: 81
A58: 3 | B58: 15 | C58: 38 | D58: 4 | E58: 29 | F58: 875198 | G58: 875493 | H58: -295
A59: 3 | B59: 15 | C59: 39 | D59: 5 | E59: 30 | F59: 898852 | G59: 898722 | H59: 130
A60: 3 | B60: 15 | C60: 40 | D60: 6 | E60: 29 | F60: 922506 | G60: 922752 | H60: -246
A61: 3 | B61: 15 | C61: 41 | D61: 7 | E61: 30 | F61: 946160 | G61: 945981 | H61: 179
A62: 3 | B62: 15 | C62: 42 | D62: 8 | E62: 29 | F62: 969814 | G62: 970011 | H62: -197
A63: 3 | B63: 15 | C63: 43 | D63: 9 | E63: 30 | F63: 993468 | G63: 993240 | H63: 228
A64: 3 | B64: 15 | C64: 44 | D64: 10 | E64: 29 | F64: 1017122 | G64: 1017270 | H64: -148
A65: 3 | B65: 15 | C65: 45 | D65: 11 | E65: 30 | F65: 1040776 | G65: 1040499 | H65: 277
A66: 3 | B66: 15 | C66: 46 | D66: 12 | E66: 29 | F66: 1064430 | G66: 1064529 | H66: -99
A67: 3 | B67: 15 | C67: 47 | D67: 13 | E67: 30 | F67: 1088084 | G67: 1087758 | H67: 326
A68: 3 | B68: 15 | C68: 48 | D68: 14 | E68: 29 | F68: 1111738 | G68: 1111788 | H68: -50
A69: 3 | B69: 15 | C69: 49 | D69: 15 | E69: 30 | F69: 1135392 | G69: 1135017 | H69: 375
A70: 4 | B70: 17 | C70: 50 | D70: 1 | E70: 30 | F70: 1159046 | G70: 1159047 | H70: -1
A71: 4 | B71: 17 | C71: 51 | D71: 2 | E71: 29 | F71: 1182700 | G71: 1183077 | H71: -377
A72: 4 | B72: 17 | C72: 52 | D72: 3 | E72: 30 | F72: 1206354 | G72: 1206306 | H72: 48
A73: 4 | B73: 17 | C73: 53 | D73: 4 | E73: 29 | F73: 1230008 | G73: 1230336 | H73: -328
A74: 4 | B74: 17 | C74: 54 | D74: 5 | E74: 30 | F74: 1253662 | G74: 1253565 | H74: 97
A75: 4 | B75: 17 | C75: 55 | D75: 6 | E75: 29 | F75: 1277316 | G75: 1277595 | H75: -279
A76: 4 | B76: 17 | C76: 56 | D76: 7 | E76: 30 | F76: 1300970 | G76: 1300824 | H76: 146
A77: 4 | B77: 17 | C77: 57 | D77: 8 | E77: 29 | F77: 1324624 | G77: 1324854 | H77: -230
A78: 4 | B78: 17 | C78: 58 | D78: 9 | E78: 30 | F78: 1348278 | G78: 1348083 | H78: 195
A79: 4 | B79: 17 | C79: 59 | D79: 10 | E79: 29 | F79: 1371932 | G79: 1372113 | H79: -181
A80: 4 | B80: 17 | C80: 60 | D80: 11 | E80: 30 | F80: 1395586 | G80: 1395342 | H80: 244
A81: 4 | B81: 17 | C81: 61 | D81: 12 | E81: 29 | F81: 1419240 | G81: 1419372 | H81: -132
A82: 4 | B82: 17 | C82: 62 | D82: 13 | E82: 30 | F82: 1442894 | G82: 1442601 | H82: 293
A83: 4 | B83: 17 | C83: 63 | D83: 14 | E83: 29 | F83: 1466548 | G83: 1466631 | H83: -83
A84: 4 | B84: 17 | C84: 64 | D84: 15 | E84: 30 | F84: 1490202 | G84: 1489860 | H84: 342
A85: 4 | B85: 17 | C85: 65 | D85: 16 | E85: 29 | F85: 1513856 | G85: 1513890 | H85: =F85-G85 -> -34
A86: =IF(D86=1,IF(A85=Yerms,1,A85+1),A85) -> 4 | B86: =IF(MOD(A86,3)=0,15,17) -> 17 | C86: 66 | D86: =IF(D85=B85,1,D85+1) -> 17 | E86: =IF(MOD(D86,2)=1,30,29) -> 30 | F86: 1537510 | G86: =G85+E85*PPD -> 1537119 | H86: 391
A87: 5 | B87: 17 | C87: =C86+1 -> 67 | D87: 1 | E87: 30 | F87: =F86+PPM -> 1561164 | G87: 1561149 | H87: 15
A88: 5 | B88: 17 | C88: 68 | D88: 2 | E88: 29 | F88: 1584818 | G88: 1585179 | H88: -361
A89: 5 | B89: 17 | C89: 69 | D89: 3 | E89: 30 | F89: 1608472 | G89: 1608408 | H89: 64
A90: 5 | B90: 17 | C90: 70 | D90: 4 | E90: 29 | F90: 1632126 | G90: 1632438 | H90: -312
A91: 5 | B91: 17 | C91: 71 | D91: 5 | E91: 30 | F91: 1655780 | G91: 1655667 | H91: 113
A92: 5 | B92: 17 | C92: 72 | D92: 6 | E92: 29 | F92: 1679434 | G92: 1679697 | H92: -263
A93: 5 | B93: 17 | C93: 73 | D93: 7 | E93: 30 | F93: 1703088 | G93: 1702926 | H93: 162
A94: 5 | B94: 17 | C94: 74 | D94: 8 | E94: 29 | F94: 1726742 | G94: 1726956 | H94: -214
A95: 5 | B95: 17 | C95: 75 | D95: 9 | E95: 30 | F95: 1750396 | G95: 1750185 | H95: 211
A96: 5 | B96: 17 | C96: 76 | D96: 10 | E96: 29 | F96: 1774050 | G96: 1774215 | H96: -165
A97: 5 | B97: 17 | C97: 77 | D97: 11 | E97: 30 | F97: 1797704 | G97: 1797444 | H97: 260
A98: 5 | B98: 17 | C98: 78 | D98: 12 | E98: 29 | F98: 1821358 | G98: 1821474 | H98: -116
A99: 5 | B99: 17 | C99: 79 | D99: 13 | E99: 30 | F99: 1845012 | G99: 1844703 | H99: 309
A100: 5 | B100: 17 | C100: 80 | D100: 14 | E100: 29 | F100: 1868666 | G100: 1868733 | H100: -67
A101: 5 | B101: 17 | C101: 81 | D101: 15 | E101: 30 | F101: 1892320 | G101: 1891962 | H101: 358
A102: 5 | B102: 17 | C102: 82 | D102: 16 | E102: 29 | F102: 1915974 | G102: 1915992 | H102: -18
A103: 5 | B103: 17 | C103: 83 | D103: 17 | E103: 30 | F103: 1939628 | G103: 1939221 | H103: 407
A104: 6 | B104: 15 | C104: 84 | D104: 1 | E104: 30 | F104: 1963282 | G104: 1963251 | H104: 31
A105: 6 | B105: 15 | C105: 85 | D105: 2 | E105: 29 | F105: 1986936 | G105: 1987281 | H105: -345
A106: 6 | B106: 15 | C106: 86 | D106: 3 | E106: 30 | F106: 2010590 | G106: 2010510 | H106: 80
A107: 6 | B107: 15 | C107: 87 | D107: 4 | E107: 29 | F107: 2034244 | G107: 2034540 | H107: -296
A108: 6 | B108: 15 | C108: 88 | D108: 5 | E108: 30 | F108: 2057898 | G108: 2057769 | H108: 129
A109: 6 | B109: 15 | C109: 89 | D109: 6 | E109: 29 | F109: 2081552 | G109: 2081799 | H109: -247
A110: 6 | B110: 15 | C110: 90 | D110: 7 | E110: 30 | F110: 2105206 | G110: 2105028 | H110: 178
A111: 6 | B111: 15 | C111: 91 | D111: 8 | E111: 29 | F111: 2128860 | G111: 2129058 | H111: -198
A112: 6 | B112: 15 | C112: 92 | D112: 9 | E112: 30 | F112: 2152514 | G112: 2152287 | H112: 227
A113: 6 | B113: 15 | C113: 93 | D113: 10 | E113: 29 | F113: 2176168 | G113: 2176317 | H113: -149
A114: 6 | B114: 15 | C114: 94 | D114: 11 | E114: 30 | F114: 2199822 | G114: 2199546 | H114: 276
A115: 6 | B115: 15 | C115: 95 | D115: 12 | E115: 29 | F115: 2223476 | G115: 2223576 | H115: -100
A116: 6 | B116: 15 | C116: 96 | D116: 13 | E116: 30 | F116: 2247130 | G116: 2246805 | H116: 325
A117: 6 | B117: 15 | C117: 97 | D117: 14 | E117: 29 | F117: 2270784 | G117: 2270835 | H117: -51
A118: 6 | B118: 15 | C118: 98 | D118: 15 | E118: 30 | F118: 2294438 | G118: 2294064 | H118: 374
A119: 7 | B119: 17 | C119: 99 | D119: 1 | E119: 30 | F119: 2318092 | G119: 2318094 | H119: -2
A120: 7 | B120: 17 | C120: 100 | D120: 2 | E120: 29 | F120: 2341746 | G120: 2342124 | H120: -378
A121: 7 | B121: 17 | C121: 101 | D121: 3 | E121: 30 | F121: 2365400 | G121: 2365353 | H121: 47
A122: 7 | B122: 17 | C122: 102 | D122: 4 | E122: 29 | F122: 2389054 | G122: 2389383 | H122: -329
A123: 7 | B123: 17 | C123: 103 | D123: 5 | E123: 30 | F123: 2412708 | G123: 2412612 | H123: 96
A124: 7 | B124: 17 | C124: 104 | D124: 6 | E124: 29 | F124: 2436362 | G124: 2436642 | H124: -280
A125: 7 | B125: 17 | C125: 105 | D125: 7 | E125: 30 | F125: 2460016 | G125: 2459871 | H125: 145
A126: 7 | B126: 17 | C126: 106 | D126: 8 | E126: 29 | F126: 2483670 | G126: 2483901 | H126: -231
A127: 7 | B127: 17 | C127: 107 | D127: 9 | E127: 30 | F127: 2507324 | G127: 2507130 | H127: 194
A128: 7 | B128: 17 | C128: 108 | D128: 10 | E128: 29 | F128: 2530978 | G128: 2531160 | H128: -182
A129: 7 | B129: 17 | C129: 109 | D129: 11 | E129: 30 | F129: 2554632 | G129: 2554389 | H129: 243
A130: 7 | B130: 17 | C130: 110 | D130: 12 | E130: 29 | F130: 2578286 | G130: 2578419 | H130: -133
A131: 7 | B131: 17 | C131: 111 | D131: 13 | E131: 30 | F131: 2601940 | G131: 2601648 | H131: 292
A132: 7 | B132: 17 | C132: 112 | D132: 14 | E132: 29 | F132: 2625594 | G132: 2625678 | H132: -84
A133: 7 | B133: 17 | C133: 113 | D133: 15 | E133: 30 | F133: 2649248 | G133: 2648907 | H133: 341
A134: 7 | B134: 17 | C134: 114 | D134: 16 | E134: 29 | F134: 2672902 | G134: 2672937 | H134: -35
A135: 7 | B135: 17 | C135: 115 | D135: 17 | E135: 30 | F135: 2696556 | G135: 2696166 | H135: 390
A136: 8 | B136: 17 | C136: 116 | D136: 1 | E136: 30 | F136: 2720210 | G136: 2720196 | H136: 14
A137: 8 | B137: 17 | C137: 117 | D137: 2 | E137: 29 | F137: 2743864 | G137: 2744226 | H137: -362
A138: 8 | B138: 17 | C138: 118 | D138: 3 | E138: 30 | F138: 2767518 | G138: 2767455 | H138: 63
A139: 8 | B139: 17 | C139: 119 | D139: 4 | E139: 29 | F139: 2791172 | G139: 2791485 | H139: -313
A140: 8 | B140: 17 | C140: 120 | D140: 5 | E140: 30 | F140: 2814826 | G140: 2814714 | H140: 112
A141: 8 | B141: 17 | C141: 121 | D141: 6 | E141: 29 | F141: 2838480 | G141: 2838744 | H141: -264
A142: 8 | B142: 17 | C142: 122 | D142: 7 | E142: 30 | F142: 2862134 | G142: 2861973 | H142: 161
A143: 8 | B143: 17 | C143: 123 | D143: 8 | E143: 29 | F143: 2885788 | G143: 2886003 | H143: -215
A144: 8 | B144: 17 | C144: 124 | D144: 9 | E144: 30 | F144: 2909442 | G144: 2909232 | H144: 210
A145: 8 | B145: 17 | C145: 125 | D145: 10 | E145: 29 | F145: 2933096 | G145: 2933262 | H145: -166
A146: 8 | B146: 17 | C146: 126 | D146: 11 | E146: 30 | F146: 2956750 | G146: 2956491 | H146: 259
A147: 8 | B147: 17 | C147: 127 | D147: 12 | E147: 29 | F147: 2980404 | G147: 2980521 | H147: -117
A148: 8 | B148: 17 | C148: 128 | D148: 13 | E148: 30 | F148: 3004058 | G148: 3003750 | H148: 308
A149: 8 | B149: 17 | C149: 129 | D149: 14 | E149: 29 | F149: 3027712 | G149: 3027780 | H149: =F149-G149 -> -68
A150: =IF(D150=1,IF(A149=Yerms,1,A149+1),A149) -> 8 | B150: =IF(MOD(A150,3)=0,15,17) -> 17 | C150: 130 | D150: =IF(D149=B149,1,D149+1) -> 15 | E150: =IF(MOD(D150,2)=1,30,29) -> 30 | F150: 3051366 | G150: =G149+E149*PPD -> 3051009 | H150: 357
A151: 8 | B151: 17 | C151: =C150+1 -> 131 | D151: 16 | E151: 29 | F151: =F150+PPM -> 3075020 | G151: 3075039 | H151: -19
A152: 8 | B152: 17 | C152: 132 | D152: 17 | E152: 30 | F152: 3098674 | G152: 3098268 | H152: 406
A153: 9 | B153: 15 | C153: 133 | D153: 1 | E153: 30 | F153: 3122328 | G153: 3122298 | H153: 30
A154: 9 | B154: 15 | C154: 134 | D154: 2 | E154: 29 | F154: 3145982 | G154: 3146328 | H154: -346
A155: 9 | B155: 15 | C155: 135 | D155: 3 | E155: 30 | F155: 3169636 | G155: 3169557 | H155: 79
A156: 9 | B156: 15 | C156: 136 | D156: 4 | E156: 29 | F156: 3193290 | G156: 3193587 | H156: -297
A157: 9 | B157: 15 | C157: 137 | D157: 5 | E157: 30 | F157: 3216944 | G157: 3216816 | H157: 128
A158: 9 | B158: 15 | C158: 138 | D158: 6 | E158: 29 | F158: 3240598 | G158: 3240846 | H158: -248
A159: 9 | B159: 15 | C159: 139 | D159: 7 | E159: 30 | F159: 3264252 | G159: 3264075 | H159: 177
A160: 9 | B160: 15 | C160: 140 | D160: 8 | E160: 29 | F160: 3287906 | G160: 3288105 | H160: -199
A161: 9 | B161: 15 | C161: 141 | D161: 9 | E161: 30 | F161: 3311560 | G161: 3311334 | H161: 226
A162: 9 | B162: 15 | C162: 142 | D162: 10 | E162: 29 | F162: 3335214 | G162: 3335364 | H162: -150
A163: 9 | B163: 15 | C163: 143 | D163: 11 | E163: 30 | F163: 3358868 | G163: 3358593 | H163: 275
A164: 9 | B164: 15 | C164: 144 | D164: 12 | E164: 29 | F164: 3382522 | G164: 3382623 | H164: -101
A165: 9 | B165: 15 | C165: 145 | D165: 13 | E165: 30 | F165: 3406176 | G165: 3405852 | H165: 324
A166: 9 | B166: 15 | C166: 146 | D166: 14 | E166: 29 | F166: 3429830 | G166: 3429882 | H166: -52
A167: 9 | B167: 15 | C167: 147 | D167: 15 | E167: 30 | F167: 3453484 | G167: 3453111 | H167: 373
A168: 10 | B168: 17 | C168: 148 | D168: 1 | E168: 30 | F168: 3477138 | G168: 3477141 | H168: -3
A169: 10 | B169: 17 | C169: 149 | D169: 2 | E169: 29 | F169: 3500792 | G169: 3501171 | H169: -379
A170: 10 | B170: 17 | C170: 150 | D170: 3 | E170: 30 | F170: 3524446 | G170: 3524400 | H170: 46
A171: 10 | B171: 17 | C171: 151 | D171: 4 | E171: 29 | F171: 3548100 | G171: 3548430 | H171: -330
A172: 10 | B172: 17 | C172: 152 | D172: 5 | E172: 30 | F172: 3571754 | G172: 3571659 | H172: 95
A173: 10 | B173: 17 | C173: 153 | D173: 6 | E173: 29 | F173: 3595408 | G173: 3595689 | H173: -281
A174: 10 | B174: 17 | C174: 154 | D174: 7 | E174: 30 | F174: 3619062 | G174: 3618918 | H174: 144
A175: 10 | B175: 17 | C175: 155 | D175: 8 | E175: 29 | F175: 3642716 | G175: 3642948 | H175: -232
A176: 10 | B176: 17 | C176: 156 | D176: 9 | E176: 30 | F176: 3666370 | G176: 3666177 | H176: 193
A177: 10 | B177: 17 | C177: 157 | D177: 10 | E177: 29 | F177: 3690024 | G177: 3690207 | H177: -183
A178: 10 | B178: 17 | C178: 158 | D178: 11 | E178: 30 | F178: 3713678 | G178: 3713436 | H178: 242
A179: 10 | B179: 17 | C179: 159 | D179: 12 | E179: 29 | F179: 3737332 | G179: 3737466 | H179: -134
A180: 10 | B180: 17 | C180: 160 | D180: 13 | E180: 30 | F180: 3760986 | G180: 3760695 | H180: 291
A181: 10 | B181: 17 | C181: 161 | D181: 14 | E181: 29 | F181: 3784640 | G181: 3784725 | H181: -85
A182: 10 | B182: 17 | C182: 162 | D182: 15 | E182: 30 | F182: 3808294 | G182: 3807954 | H182: 340
A183: 10 | B183: 17 | C183: 163 | D183: 16 | E183: 29 | F183: 3831948 | G183: 3831984 | H183: -36
A184: 10 | B184: 17 | C184: 164 | D184: 17 | E184: 30 | F184: 3855602 | G184: 3855213 | H184: 389
A185: 11 | B185: 17 | C185: 165 | D185: 1 | E185: 30 | F185: 3879256 | G185: 3879243 | H185: 13
A186: 11 | B186: 17 | C186: 166 | D186: 2 | E186: 29 | F186: 3902910 | G186: 3903273 | H186: -363
A187: 11 | B187: 17 | C187: 167 | D187: 3 | E187: 30 | F187: 3926564 | G187: 3926502 | H187: 62
A188: 11 | B188: 17 | C188: 168 | D188: 4 | E188: 29 | F188: 3950218 | G188: 3950532 | H188: -314
A189: 11 | B189: 17 | C189: 169 | D189: 5 | E189: 30 | F189: 3973872 | G189: 3973761 | H189: 111
A190: 11 | B190: 17 | C190: 170 | D190: 6 | E190: 29 | F190: 3997526 | G190: 3997791 | H190: -265
A191: 11 | B191: 17 | C191: 171 | D191: 7 | E191: 30 | F191: 4021180 | G191: 4021020 | H191: 160
A192: 11 | B192: 17 | C192: 172 | D192: 8 | E192: 29 | F192: 4044834 | G192: 4045050 | H192: -216
A193: 11 | B193: 17 | C193: 173 | D193: 9 | E193: 30 | F193: 4068488 | G193: 4068279 | H193: 209
A194: 11 | B194: 17 | C194: 174 | D194: 10 | E194: 29 | F194: 4092142 | G194: 4092309 | H194: -167
A195: 11 | B195: 17 | C195: 175 | D195: 11 | E195: 30 | F195: 4115796 | G195: 4115538 | H195: 258
A196: 11 | B196: 17 | C196: 176 | D196: 12 | E196: 29 | F196: 4139450 | G196: 4139568 | H196: -118
A197: 11 | B197: 17 | C197: 177 | D197: 13 | E197: 30 | F197: 4163104 | G197: 4162797 | H197: 307
A198: 11 | B198: 17 | C198: 178 | D198: 14 | E198: 29 | F198: 4186758 | G198: 4186827 | H198: -69
A199: 11 | B199: 17 | C199: 179 | D199: 15 | E199: 30 | F199: 4210412 | G199: 4210056 | H199: 356
A200: 11 | B200: 17 | C200: 180 | D200: 16 | E200: 29 | F200: 4234066 | G200: 4234086 | H200: -20
A201: 11 | B201: 17 | C201: 181 | D201: 17 | E201: 30 | F201: 4257720 | G201: 4257315 | H201: 405
... 637 more rows

Sheet Yerms
A1: Month in Cycle | B1: Yerm | C1: New Yerm Moment | D1: Elapsed | E1: Difference | F1: Top | G1: Yerm Start
A2: =StartMonth -> 1 | B2: 1 | C2: =(A2-1)*PPM -> 0 | D2: =LOOKUP(A2,Data!C$21:C$838,Data!G$21:G$838) -> 0 | E2: =IF(AND(StartMonth>15,MOD(B2,3)=0),NA(),C2-D2) -> 0 | F2: 1200 | G2: =A2-StartMonth+1 -> 1
A3: =A2+IF(MOD(B2,3)=0,15,17) -> 18 | B3: =MOD(B2,Yerms)+1 -> 2 | C3: =(A3-1)*PPM -> 402118 | D3: =LOOKUP(A3,Data!C$21:C$838,Data!G$21:G$838) -> 402102 | E3: 16 | F3: =F2 -> 1200 | G3: 18
A4: =A3+IF(MOD(B3,3)=0,15,17) -> 35 | B4: =MOD(B3,Yerms)+1 -> 3 | C4: =(A4-1)*PPM -> 804236 | D4: =LOOKUP(A4,Data!C$21:C$838,Data!G$21:G$838) -> 804204 | E4: 32 | F4: =F3 -> 1200 | G4: 35
A5: 50 | B5: 4 | C5: 1159046 | D5: =LOOKUP(A5,Data!C$21:C$838,Data!G$21:G$838) -> 1159047 | E5: -1 | F5: 1200 | G5: 50
A6: 67 | B6: 5 | C6: 1561164 | D6: =LOOKUP(A6,Data!C$21:C$838,Data!G$21:G$838) -> 1561149 | E6: 15 | F6: 1200 | G6: 67
A7: 84 | B7: 6 | C7: 1963282 | D7: =LOOKUP(A7,Data!C$21:C$838,Data!G$21:G$838) -> 1963251 | E7: 31 | F7: 1200 | G7: 84
A8: 99 | B8: 7 | C8: 2318092 | D8: =LOOKUP(A8,Data!C$21:C$838,Data!G$21:G$838) -> 2318094 | E8: -2 | F8: 1200 | G8: 99
A9: 116 | B9: 8 | C9: 2720210 | D9: =LOOKUP(A9,Data!C$21:C$838,Data!G$21:G$838) -> 2720196 | E9: 14 | F9: 1200 | G9: 116
A10: 133 | B10: 9 | C10: 3122328 | D10: =LOOKUP(A10,Data!C$21:C$838,Data!G$21:G$838) -> 3122298 | E10: 30 | F10: 1200 | G10: 133
A11: 148 | B11: 10 | C11: 3477138 | D11: =LOOKUP(A11,Data!C$21:C$838,Data!G$21:G$838) -> 3477141 | E11: -3 | F11: 1200 | G11: 148
A12: 165 | B12: 11 | C12: 3879256 | D12: =LOOKUP(A12,Data!C$21:C$838,Data!G$21:G$838) -> 3879243 | E12: 13 | F12: 1200 | G12: 165
A13: 182 | B13: 12 | C13: 4281374 | D13: =LOOKUP(A13,Data!C$21:C$838,Data!G$21:G$838) -> 4281345 | E13: 29 | F13: 1200 | G13: 182
A14: 197 | B14: 13 | C14: 4636184 | D14: =LOOKUP(A14,Data!C$21:C$838,Data!G$21:G$838) -> 4636188 | E14: -4 | F14: 1200 | G14: 197
A15: 214 | B15: 14 | C15: 5038302 | D15: =LOOKUP(A15,Data!C$21:C$838,Data!G$21:G$838) -> 5038290 | E15: 12 | F15: 1200 | G15: 214
A16: 231 | B16: 15 | C16: 5440420 | D16: =LOOKUP(A16,Data!C$21:C$838,Data!G$21:G$838) -> 5440392 | E16: 28 | F16: 1200 | G16: 231
A17: 246 | B17: 16 | C17: 5795230 | D17: =LOOKUP(A17,Data!C$21:C$838,Data!G$21:G$838) -> 5795235 | E17: -5 | F17: 1200 | G17: 246
A18: 263 | B18: 17 | C18: 6197348 | D18: =LOOKUP(A18,Data!C$21:C$838,Data!G$21:G$838) -> 6197337 | E18: 11 | F18: 1200 | G18: 263
A19: 280 | B19: 18 | C19: 6599466 | D19: =LOOKUP(A19,Data!C$21:C$838,Data!G$21:G$838) -> 6599439 | E19: 27 | F19: 1200 | G19: 280
A20: 295 | B20: 19 | C20: 6954276 | D20: =LOOKUP(A20,Data!C$21:C$838,Data!G$21:G$838) -> 6954282 | E20: -6 | F20: 1200 | G20: 295
A21: 312 | B21: 20 | C21: 7356394 | D21: =LOOKUP(A21,Data!C$21:C$838,Data!G$21:G$838) -> 7356384 | E21: 10 | F21: 1200 | G21: 312
A22: 329 | B22: 21 | C22: 7758512 | D22: =LOOKUP(A22,Data!C$21:C$838,Data!G$21:G$838) -> 7758486 | E22: 26 | F22: 1200 | G22: 329
A23: 344 | B23: 22 | C23: 8113322 | D23: =LOOKUP(A23,Data!C$21:C$838,Data!G$21:G$838) -> 8113329 | E23: -7 | F23: 1200 | G23: 344
A24: =A23+IF(MOD(B23,3)=0,15,17) -> 361 | B24: =MOD(B23,Yerms)+1 -> 23 | C24: =(A24-1)*PPM -> 8515440 | D24: =LOOKUP(A24,Data!C$21:C$838,Data!G$21:G$838) -> 8515431 | E24: 9 | F24: =F23 -> 1200 | G24: =A24-StartMonth+1 -> 361
A25: 378 | B25: 24 | C25: 8917558 | D25: =LOOKUP(A25,Data!C$21:C$838,Data!G$21:G$838) -> 8917533 | E25: 25 | F25: 1200 | G25: 378
A26: 393 | B26: 25 | C26: 9272368 | D26: =LOOKUP(A26,Data!C$21:C$838,Data!G$21:G$838) -> 9272376 | E26: -8 | F26: 1200 | G26: 393
A27: 410 | B27: 26 | C27: 9674486 | D27: =LOOKUP(A27,Data!C$21:C$838,Data!G$21:G$838) -> 9674478 | E27: 8 | F27: 1200 | G27: 410
A28: 427 | B28: 27 | C28: 10076604 | D28: =LOOKUP(A28,Data!C$21:C$838,Data!G$21:G$838) -> 10076580 | E28: 24 | F28: 1200 | G28: 427
A29: 442 | B29: 28 | C29: 10431414 | D29: =LOOKUP(A29,Data!C$21:C$838,Data!G$21:G$838) -> 10431423 | E29: -9 | F29: 1200 | G29: 442
A30: 459 | B30: 29 | C30: 10833532 | D30: =LOOKUP(A30,Data!C$21:C$838,Data!G$21:G$838) -> 10833525 | E30: 7 | F30: 1200 | G30: 459
A31: 476 | B31: 30 | C31: 11235650 | D31: =LOOKUP(A31,Data!C$21:C$838,Data!G$21:G$838) -> 11235627 | E31: 23 | F31: 1200 | G31: 476
A32: 491 | B32: 31 | C32: 11590460 | D32: =LOOKUP(A32,Data!C$21:C$838,Data!G$21:G$838) -> 11590470 | E32: -10 | F32: 1200 | G32: 491
A33: 508 | B33: 32 | C33: 11992578 | D33: =LOOKUP(A33,Data!C$21:C$838,Data!G$21:G$838) -> 11992572 | E33: 6 | F33: 1200 | G33: 508
A34: 525 | B34: 33 | C34: 12394696 | D34: =LOOKUP(A34,Data!C$21:C$838,Data!G$21:G$838) -> 12394674 | E34: =IF(AND(StartMonth>15,MOD(B34,3)=0),NA(),C34-D34) -> 22 | F34: 1200 | G34: 525
A35: 540 | B35: 34 | C35: 12749506 | D35: =LOOKUP(A35,Data!C$21:C$838,Data!G$21:G$838) -> 12749517 | E35: -11 | F35: 1200 | G35: 540
A36: 557 | B36: 35 | C36: 13151624 | D36: =LOOKUP(A36,Data!C$21:C$838,Data!G$21:G$838) -> 13151619 | E36: 5 | F36: 1200 | G36: 557
A37: 574 | B37: 36 | C37: 13553742 | D37: =LOOKUP(A37,Data!C$21:C$838,Data!G$21:G$838) -> 13553721 | E37: 21 | F37: 1200 | G37: 574
A38: 589 | B38: 37 | C38: 13908552 | D38: =LOOKUP(A38,Data!C$21:C$838,Data!G$21:G$838) -> 13908564 | E38: -12 | F38: 1200 | G38: 589
A39: 606 | B39: 38 | C39: 14310670 | D39: =LOOKUP(A39,Data!C$21:C$838,Data!G$21:G$838) -> 14310666 | E39: 4 | F39: 1200 | G39: 606
A40: 623 | B40: 39 | C40: 14712788 | D40: =LOOKUP(A40,Data!C$21:C$838,Data!G$21:G$838) -> 14712768 | E40: 20 | F40: 1200 | G40: 623
A41: 638 | B41: 40 | C41: 15067598 | D41: =LOOKUP(A41,Data!C$21:C$838,Data!G$21:G$838) -> 15067611 | E41: -13 | F41: 1200 | G41: 638
A42: 655 | B42: 41 | C42: 15469716 | D42: =LOOKUP(A42,Data!C$21:C$838,Data!G$21:G$838) -> 15469713 | E42: 3 | F42: 1200 | G42: 655
A43: 672 | B43: 42 | C43: 15871834 | D43: =LOOKUP(A43,Data!C$21:C$838,Data!G$21:G$838) -> 15871815 | E43: 19 | F43: 1200 | G43: 672
A44: 687 | B44: 43 | C44: 16226644 | D44: =LOOKUP(A44,Data!C$21:C$838,Data!G$21:G$838) -> 16226658 | E44: -14 | F44: 1200 | G44: 687
A45: 704 | B45: 44 | C45: 16628762 | D45: =LOOKUP(A45,Data!C$21:C$838,Data!G$21:G$838) -> 16628760 | E45: 2 | F45: 1200 | G45: 704
A46: 721 | B46: 45 | C46: 17030880 | D46: =LOOKUP(A46,Data!C$21:C$838,Data!G$21:G$838) -> 17030862 | E46: 18 | F46: 1200 | G46: 721
A47: =A46+IF(MOD(B46,3)=0,15,17) -> 736 | B47: =MOD(B46,Yerms)+1 -> 46 | C47: =(A47-1)*PPM -> 17385690 | D47: =LOOKUP(A47,Data!C$21:C$838,Data!G$21:G$838) -> 17385705 | E47: -15 | F47: =F46 -> 1200 | G47: =A47-StartMonth+1 -> 736
A48: 753 | B48: 47 | C48: 17787808 | D48: =LOOKUP(A48,Data!C$21:C$838,Data!G$21:G$838) -> 17787807 | E48: 1 | F48: 1200 | G48: 753
A49: 770 | B49: 48 | C49: 18189926 | D49: =LOOKUP(A49,Data!C$21:C$838,Data!G$21:G$838) -> 18189909 | E49: 17 | F49: 1200 | G49: 770
A50: 785 | B50: 49 | C50: 18544736 | D50: =LOOKUP(A50,Data!C$21:C$838,Data!G$21:G$838) -> 18544752 | E50: -16 | F50: 1200 | G50: 785
A51: 802 | B51: 1 | C51: 18946854 | D51: =LOOKUP(A51,Data!C$21:C$838,Data!G$21:G$838) -> 18946854 | E51: 0 | F51: 1200 | G51: 802

Sheet Rules
A1: odd-numbered months have 30 days, even numbered months have 29 days
A2: yerms have 17 months (9 full, 8 deficient) or 15 months (8 full, 7 deficient)
A3: length of 17-month yerm = | B3: =(9*30)+(8*29) -> 502 | C3: days
A4: length of 15-month yerm = | B4: =(8*30)+(7*29) -> 443 | C4: days
A5: yerms are numbered from yerm #1
A6: if yerm# is divisible by 3 then it has 15 months, otherwise it has 17 months
A7: repeating pattern = 17+17+15 = | B7: =17+17+15 -> 49 | C7: months
A8: which is repeated | B8: =INT(MPC/B7) -> 16 | C8: times
A9: to make a subtotal of | B9: =3*B8 -> 48 | C9: yerms
A10: full cycle has | B10: =Yerms -> 49 | C10: yerms
A11: ="The last yerm #"&Yerms&" has 17 months." -> The last yerm #49 has 17 months.

Sheet Zoom
A1: 0 | B1: = Current Zoom Level
A2: Level | B2: Months | C2: MajorTick | D2: MinorTick | E2: Shift | F2: Connect
A3: =ROW()-3 -> 0 | B3: =MPC -> 801 | C3: 49 | D3: 7 | F3: FALSE
A4: 1 | B4: 392 | C4: 49 | D4: 7 | E4: =B5 -> 196 | F4: FALSE
A5: 2 | B5: 196 | C5: 7 | D5: 7 | E5: =B6 -> 98 | F5: FALSE
A6: 3 | B6: 98 | C6: 7 | D6: 1 | E6: 49 | F6: TRUE
A7: 4 | B7: 49 | C7: 2 | D7: 1 | E7: 49 | F7: TRUE

Sheet Labels
A1: Month | B1: Hours | C1: ="Span "&B2-B24&"h" -> Span 66h
A2: 802 | B2: 33
A3: =A2 -> 802 | B3: =B2-3 -> 30
A4: =A3 -> 802 | B4: =B3-3 -> 27
A5: =A4 -> 802 | B5: 24
A6: =A5 -> 802 | B6: 21
A7: 802 | B7: 18
A8: 802 | B8: 15
A9: 802 | B9: 12
A10: 802 | B10: 9
A11: 802 | B11: 6
A12: 802 | B12: 3
A13: 802 | B13: 0
A14: 802 | B14: -3
A15: 802 | B15: -6
A16: 802 | B16: -9
A17: 802 | B17: -12
A18: 802 | B18: -15
A19: 802 | B19: -18
A20: 802 | B20: -21
A21: 802 | B21: -24
A22: 802 | B22: -27
A23: 802 | B23: -30
A24: 802 | B24: -33
